bitfinex-derivatives/quotes_SOLF0:USTF0_20251023
["timestamp","ask_amount","ask_price","bid_price","bid_amount"]
[1761185545301,2.83,181.72,181.68,45.4]
[1761185549290,6.96782566,181.75,181.68,45.4]
[1761185549494,6.96782566,181.74,181.68,45.4]
[1761185549696,6.96782566,181.73,181.68,45.4]
[1761185549898,2.88,181.73,181.68,45.4]
[1761185559312,4.09168156,181.72,181.68,45.4]
[1761185559512,2.88,181.73,181.68,45.4]
[1761185559707,4.0922449,181.72,181.68,45.4]
[1761185560007,2.88,181.73,181.68,45.4]
[1761185560612,4.09297356,181.72,181.68,45.4]
[1761185560812,2.88,181.73,181.68,45.4]
[1761185561011,4.09297356,181.72,181.68,45.4]
[1761185561212,2.88,181.73,181.68,45.4]
[1761185561412,4.09315489,181.72,181.68,45.4]
[1761185561616,2.88,181.73,181.68,45.4]
[1761185561811,6.97391446,181.72,181.68,45.4]
[1761185562111,2.88,181.75,181.68,45.4]
[1761185562312,6.97403303,181.74,181.68,45.4]
[1761185562506,6.97403303,181.73,181.68,45.4]
[1761185562707,4.09403303,181.72,181.68,45.4]
[1761185562910,2.88,181.73,181.68,45.4]
[1761185563113,4.0946236,181.72,181.68,45.4]
[1761185563409,2.88,181.73,181.68,45.4]
[1761185564511,4.09723419,181.72,181.68,45.4]
[1761185564813,2.88,181.73,181.68,45.4]
[1761185565007,4.09723419,181.72,181.68,45.4]
[1761185565204,2.88,181.73,181.68,45.4]
[1761185565408,4.09744595,181.72,181.68,45.4]
[1761185565610,2.88,181.73,181.68,45.4]
[1761185565811,4.09744595,181.72,181.68,45.4]
[1761185566017,2.88,181.73,181.68,45.4]
[1761185566218,4.09744595,181.72,181.68,45.4]
[1761185566514,2.88,181.73,181.68,45.4]
[1761185566712,4.09910635,181.72,181.68,45.4]
[1761185566914,2.88,181.73,181.68,45.4]
[1761185567114,4.09910635,181.72,181.68,45.4]
[1761185567307,2.88,181.73,181.68,45.4]
[1761185567507,4.10104062,181.72,181.68,45.4]
[1761185567805,4.10112229,181.71,181.67,4.9529]
[1761185568008,2.88,181.73,181.68,45.4]
[1761185568207,6.98117048,181.72,181.68,45.4]
[1761185568415,4.10117048,181.71,181.68,45.4]
[1761185568614,2.88,181.72,181.68,45.4]
[1761185568809,4.10333289,181.71,181.68,45.4]
[1761185569011,2.88,181.72,181.68,45.4]
[1761185569205,4.10333289,181.71,181.68,45.4]
[1761185569409,4.10333289,181.7,181.68,45.4]
[1761185569610,5.13226009,181.74,181.68,45.4]
[1761185569815,4.10575304,181.73,181.68,45.4]
[1761185570012,4.10575304,181.72,181.68,45.4]
[1761185570213,4.10575304,181.71,181.68,45.4]
[1761185570407,4.10575304,181.7,181.68,45.4]
[1761185570606,8.02848232,181.74,181.68,45.4]
[1761185570920,11.69759345,181.73,181.68,45.4]
[1761185571214,11.70022476,181.72,181.68,45.4]
[1761185571419,6.98943287,181.71,181.68,45.4]
[1761185571720,4.10943287,181.7,181.68,45.4]
[1761185571918,4.10943287,181.69,181.68,45.4]
[1761185576619,5.14848232,181.77,181.68,46.5]
[1761185576821,8.02848232,181.79,181.72,3.05093549]
[1761185577022,8.02848232,181.79,181.73,45.4]
[1761185577023,4.68946365,181.78,181.73,45.4]
[1761185577221,8.02848232,181.79,181.73,45.4]
[1761185577422,2.88,181.79,181.73,45.4]
[1761185577624,2.88,181.77,181.73,45.4]
[1761185578013,7.56614515,181.76,181.73,45.4]
[1761185578219,2.88,181.76,181.73,45.4]
[1761185579926,2.88,181.76,181.74,45.4]
[1761185580622,2.88,181.76,181.72,3.05093549]
[1761185580925,2.88,181.76,181.73,40.94]
[1761185581313,7.88848232,181.74,181.73,40.94]
[1761185581516,2.74,181.73,181.69,45.4]
[1761185581918,7.88848232,181.72,181.69,45.4]
[1761185582627,2.74,181.72,181.69,45.4]
[1761185583827,7.88848232,181.72,181.69,45.4]
[1761185585925,2.74,181.72,181.69,45.4]
[1761185586126,7.88848232,181.72,181.69,45.4]
[1761185588221,2.74,181.72,181.69,45.4]
[1761185588617,4.27096423,181.71,181.69,45.4]
[1761185588818,4.27096423,181.7,181.69,47.35384271]
[1761185592032,2.74,181.69,181.65,1.95384271]
[1761185592230,7.01096423,181.68,181.65,1.95384271]
[1761185592530,4.27096423,181.67,181.65,1.95384271]
[1761185592733,4.27096423,181.66,181.65,1.95384271]
[1761185593229,7.01096423,181.66,181.64,45.4]
[1761185593533,7.01096423,181.65,181.64,45.4]
[1761185595524,7.01096423,181.65,181.62,1.95384271]
[1761185595736,4.27096423,181.64,181.62,47.35384271]
[1761185595930,4.27096423,181.63,181.62,47.35384271]
[1761185596328,2.74,181.65,181.62,47.35384271]
[1761185596528,4.26589744,181.64,181.62,47.35384271]
[1761185596733,2.74,181.65,181.62,47.35384271]
[1761185597033,4.26589744,181.64,181.62,45.4]
[1761185597332,2.74,181.65,181.62,45.4]
[1761185597531,4.26471333,181.64,181.62,45.4]
[1761185597726,2.74,181.65,181.62,45.4]
[1761185597925,4.26471333,181.64,181.62,45.4]
[1761185598127,2.74,181.65,181.63,1.95384271]
[1761185598328,4.26452391,181.64,181.63,1.95384271]
[1761185599732,2.74,181.68,181.63,1.95384271]
[1761185599928,4.26241774,181.67,181.66,1.95384271]
[1761185601336,7.00241774,181.67,181.66,1.95384271]
[1761185604834,4.26241774,181.67,181.66,1.95384271]
[1761185606237,7.04241774,181.67,181.66,1.95384271]
[1761185608334,4.26241774,181.67,181.66,1.95384271]
[1761185608530,7.58058931,181.7,181.66,1.95384271]
[1761185608736,2.78,181.7,181.69,1.95384271]
[1761185608937,8.06848232,181.72,181.69,1.95384271]
[1761185609241,2.92,181.72,181.71,1.95384271]
[1761185609535,7.71972366,181.72,181.71,1.95384271]
[1761185610134,2.92,181.71,181.55,28.53]
[1761185610436,2.92,181.71,181.69,1.95384271]
[1761185610748,2.92,181.7,181.69,1.95384271]
[1761185612038,2.92,181.7,181.67,1.95384271]
[1761185614644,2.92,181.71,181.69,1.95384271]
[1761185614833,1.95384271,181.8,181.69,1.95384271]
[1761185614834,2.92,181.72,181.69,1.95384271]
[1761185615035,2.92,181.72,181.71,1.95384271]
[1761185616036,5.14848232,181.74,181.71,1.95384271]
[1761185616233,5.13296942,181.76,181.73,1.95384271]
[1761185616450,2.92,181.77,181.75,1.95384271]
[1761185616636,2.92,181.76,181.75,1.95384271]
[1761185619350,5.13296942,181.8,181.75,1.95384271]
[1761185619551,2.92,181.78,181.77,1.95384271]
[1761185620353,2.92,181.81,181.77,1.95384271]
[1761185620652,2.92,181.81,181.8,1.95384271]
[1761185620952,7.14645757,181.81,181.8,1.95384271]
[1761185624055,7.14070345,181.81,181.8,1.95384271]
[1761185625358,2.92,181.81,181.8,1.95384271]
[1761185626262,7.13787925,181.81,181.8,1.95384271]
[1761185628264,2.92,181.8,181.77,1.95384271]
[1761185628467,4.21474046,181.79,181.77,1.95384271]
[1761185628658,2.92,181.82,181.77,1.95384271]
[1761185628862,2.92,181.8,181.75,1.95384271]
[1761185629166,2.92,181.78,181.75,1.95384271]
[1761185630159,4.21418419,181.81,181.77,1.95384271]
[1761185630353,2.92,181.79,181.77,1.95384271]
[1761185642268,2.92,181.79,181.76,1.95384271]
[1761185642563,4.18464478,181.82,181.76,1.95384271]
[1761185642564,4.18464478,181.81,181.76,1.95384271]
[1761185642763,2.69,181.82,181.78,1.95384271]
[1761185643173,2.69,181.82,181.8,1.95384271]
[1761185648873,2.69,181.82,181.77,3.04917317]
[1761185651784,2.69,181.85,181.77,3.04917317]
[1761185651981,10.29083387,181.91,181.8,3.04917317]
[1761185651982,2.69,181.83,181.8,3.04917317]
[1761185653581,2.69,181.81,181.77,3.04917317]
[1761185657286,2.69,181.84,181.77,3.04917317]
[1761185657487,6.89055931,181.83,181.77,3.04917317]
[1761185657787,6.89055931,181.82,181.77,3.04917317]
[1761185657981,4.20055931,181.81,181.77,3.04917317]
[1761185658183,2.69,181.81,181.77,3.04917317]
[1761185659188,4.20645624,181.8,181.77,3.04917317]
[1761185659493,2.69,181.81,181.77,3.04917317]
[1761185659675,4.2064577,181.8,181.77,3.04917317]
[1761185659880,2.69,181.81,181.77,3.04917317]
[1761185660380,4.20896919,181.8,181.77,3.04917317]
[1761185660583,2.69,181.81,181.77,3.04917317]
[1761185660789,4.20892565,181.8,181.77,3.04917317]
[1761185660987,2.69,181.81,181.77,3.04917317]
[1761185661290,4.20892565,181.8,181.77,3.04917317]
[1761185661588,2.69,181.81,181.77,3.04917317]
[1761185661789,4.21036626,181.8,181.77,3.04917317]
[1761185661992,2.69,181.81,181.77,3.04917317]
[1761185662186,4.21036626,181.8,181.77,3.04917317]
[1761185662390,2.69,181.81,181.77,3.04917317]
[1761185662689,4.21131499,181.8,181.77,3.04917317]
[1761185662877,2.69,181.81,181.77,3.04917317]
[1761185663082,4.21131499,181.8,181.77,3.04917317]
[1761185663282,2.69,181.81,181.77,3.04917317]
[1761185663479,4.21243425,181.8,181.77,3.04917317]
[1761185663683,2.69,181.81,181.77,3.04917317]
[1761185663888,4.21243425,181.8,181.77,3.04917317]
[1761185664192,2.69,181.81,181.77,3.04917317]
[1761185664392,4.21385377,181.8,181.77,3.04917317]
[1761185664593,4.21380637,181.79,181.77,3.04917317]
[1761185664891,2.69,181.81,181.77,3.04917317]
[1761185665193,4.79096107,181.83,181.74,3.04917317]
[1761185665194,2.72,181.79,181.74,3.04917317]
[1761185666093,2.72,181.79,181.74,8.00027317]
[1761185667489,6.92836041,181.78,181.74,8.00027317]
[1761185667689,2.72,181.78,181.74,53.38027317]
[1761185668789,5.12013468,181.83,181.75,4.9508]
[1761185668994,2.72,181.81,181.75,4.9508]
[1761185669296,2.72,181.79,181.75,4.9508]
[1761185670996,6.92820966,181.78,181.75,4.9508]
[1761185671196,2.72,181.78,181.75,4.9508]
[1761185671792,2.72,181.78,181.74,45.38]
[1761185671987,2.72,181.76,181.74,45.38]
[1761185672602,6.92834543,181.75,181.74,45.38]
[1761185676298,2.72,181.74,181.71,4.952]
[1761185676498,6.92834543,181.73,181.72,45.38]
[1761185678298,2.72,181.73,181.72,45.38]
[1761185680602,2.72,181.76,181.72,45.38]
[1761185680806,4.2021639,181.75,181.72,45.38]
[1761185681007,2.72,181.78,181.72,45.38]
[1761185681199,6.92198385,181.77,181.72,45.38]
[1761185681395,4.20198385,181.76,181.72,45.38]
[1761185681602,4.20198385,181.75,181.72,45.38]
[1761185681797,2.72,181.77,181.72,45.38]
[1761185682106,2.72,181.75,181.72,45.38]
[1761185684608,2.72,181.78,181.72,45.38]
[1761185684907,2.72,181.76,181.73,45.38]
[1761185685501,4.19999743,181.75,181.73,45.38]
[1761185685809,2.72,181.76,181.73,45.38]
[1761185686010,4.19999743,181.75,181.73,45.38]
[1761185686206,2.72,181.76,181.73,45.38]
[1761185686509,4.19999785,181.75,181.73,45.38]
[1761185686710,2.72,181.76,181.73,45.38]
[1761185687010,4.19976261,181.75,181.73,45.38]
[1761185687210,2.72,181.79,181.73,45.38]
[1761185687407,2.72,181.77,181.73,45.38]
[1761185687809,6.91967748,181.76,181.73,45.38]
[1761185688109,2.72,181.76,181.73,45.38]
[1761185694914,2.72,181.76,181.72,3.04917317]
[1761185695114,2.72,181.76,181.73,45.38]
[1761185697210,2.72,181.74,181.73,45.38]
[1761185697811,6.86449857,181.74,181.73,45.38]
[1761185699120,2.72,181.74,181.73,45.38]
[1761185700412,6.86444541,181.74,181.73,45.38]
[1761185701818,2.73,181.76,181.73,45.38]
[1761185702119,6.87416286,181.75,181.73,45.38]
[1761185702306,2.73,181.75,181.73,45.38]
[1761185703915,2.73,181.78,181.73,45.38]
[1761185704116,6.87452448,181.77,181.73,45.38]
[1761185704316,6.87452448,181.76,181.73,45.38]
[1761185704517,2.73,181.76,181.73,45.38]
[1761185704917,7.87333109,181.8,181.73,45.38]
[1761185705119,4.14490851,181.79,181.73,45.38]
[1761185705313,6.87490851,181.78,181.73,45.38]
[1761185705619,4.14490851,181.77,181.73,45.38]
[1761185705820,5.14333109,181.81,181.75,3.04917317]
[1761185706017,2.73,181.79,181.75,3.04917317]
[1761185706207,4.1451788,181.78,181.75,3.04917317]
[1761185706407,4.1451788,181.77,181.75,3.04917317]
[1761185706608,2.73,181.79,181.75,3.04917317]
[1761185706814,4.14586582,181.78,181.75,3.04917317]
[1761185707016,4.14586582,181.77,181.75,3.04917317]
[1761185707213,2.73,181.79,181.75,3.04917317]
[1761185707418,4.14661033,181.78,181.75,3.04917317]
[1761185707622,4.14661033,181.77,181.75,3.04917317]
[1761185707824,2.73,181.79,181.75,3.04917317]
[1761185708019,4.14637022,181.78,181.75,3.04917317]
[1761185708216,2.73,181.81,181.75,3.04917317]
[1761185708417,4.1469286,181.8,181.75,8.00017317]
[1761185708616,4.1469286,181.79,181.75,8.00017317]
[1761185708826,2.73,181.81,181.78,3.04917317]
[1761185709017,4.14670571,181.8,181.78,48.42917317]
[1761185709217,2.73,181.83,181.78,48.42917317]
[1761185709514,4.1464806,181.82,181.78,48.42917317]
[1761185709718,4.1464806,181.81,181.78,48.42917317]
[1761185709918,7.37277474,181.85,181.78,48.42917317]
[1761185710219,4.14237486,181.84,181.78,48.42917317]
[1761185710418,4.14237486,181.83,181.78,48.42917317]
[1761185710718,4.14237486,181.82,181.78,45.38]
[1761185710916,2.73,181.85,181.81,1.95100156]
[1761185711115,6.87169458,181.84,181.81,1.95100156]
[1761185711316,4.14169458,181.83,181.81,1.95100156]
[1761185711517,4.14169458,181.82,181.81,1.95100156]
[1761185713619,2.73,181.84,181.81,1.95100156]
[1761185713819,4.13991618,181.83,181.81,1.95100156]
[1761185714014,2.73,181.84,181.81,1.95100156]
[1761185714224,4.13906957,181.83,181.82,45.38]
[1761185722217,2.73,181.84,181.82,45.38]
[1761185722427,2.73,181.84,181.83,1.95100156]
[1761185722625,6.86481314,181.84,181.83,1.95100156]
[1761185729530,4.13481314,181.84,181.83,1.95100156]
[1761185729833,7.02481314,181.84,181.83,1.95100156]
[1761185735038,4.13481314,181.84,181.82,45.38]
[1761185735235,7.02481314,181.83,181.82,45.38]
[1761185736334,7.02481314,181.83,181.82,47.33100156]
[1761185738539,7.02481314,181.83,181.82,1.95100156]
[1761185741441,4.13481314,181.83,181.82,1.95100156]
[1761185741745,7.02481314,181.83,181.82,1.95100156]
[1761185742843,4.13481314,181.83,181.82,1.95100156]
[1761185747139,7.02481314,181.83,181.82,1.95100156]
[1761185749646,4.13481314,181.83,181.8,45.36]
[1761185749841,11.67639709,181.82,181.81,1.95100156]
[1761185750046,7.02481314,181.82,181.81,1.95100156]
[1761185751247,8.03333109,181.84,181.81,1.95100156]
[1761185751549,8.03333109,181.84,181.8,45.36]
[1761185751550,8.03333109,181.84,181.83,1.95100156]
[1761185751752,12.68855555,181.84,181.83,1.95100156]
[1761185751951,7.54522446,181.84,181.83,1.95100156]
[1761185752150,12.68855555,181.84,181.83,1.95100156]
[1761185753854,8.03333109,181.84,181.83,1.95100156]
[1761185755550,12.66361165,181.84,181.83,1.95100156]
[1761185758557,8.03333109,181.84,181.83,1.95100156]
[1761185759557,7.89333109,181.84,181.83,1.95100156]
[1761185760549,2.75,181.84,181.83,1.95100156]
[1761185761156,7.89333109,181.86,181.83,1.95100156]
[1761185761354,7.89333109,181.86,181.85,1.95100156]
[1761185762056,7.90006324,181.86,181.85,1.95100156]
[1761185763158,11.96284082,181.86,181.85,1.95100156]
[1761185763455,2.75,181.85,181.83,1.95100156]
[1761185763659,6.81277758,181.84,181.83,1.95100156]
[1761185768568,4.06277758,181.84,181.83,1.95100156]
[1761185769164,2.75,181.87,181.83,1.95100156]
[1761185769364,2.75,181.87,181.86,1.95100156]
[1761185769764,2.75,181.87,181.86,6.96762385]
[1761185770860,2.75,181.87,181.86,6.96707949]
[1761185772169,5.15006324,181.89,181.86,6.96707949]
[1761185772368,2.75,181.89,181.87,5.01607793]
[1761185772570,2.75,181.89,181.86,1.95100156]
[1761185772571,2.75,181.89,181.88,5.01607793]
[1761185773370,2.75,181.9,181.88,5.01607793]
[1761185773571,2.75,181.9,181.89,5.01607793]
[1761185774766,7.90006324,181.9,181.89,5.01607793]
[1761185776169,2.75,181.9,181.89,5.01607793]
[1761185781066,6.73874588,181.9,181.89,5.01607793]
[1761185784677,3.98874588,181.9,181.89,5.01607793]
[1761185785275,6.90874588,181.9,181.89,5.01607793]
[1761185785978,8.07006324,181.94,181.89,5.01607793]
[1761185786276,8.07006324,181.94,181.9,8.06281211]
[1761185786277,2.92,181.94,181.9,8.06281211]
[1761185786479,2.92,181.94,181.91,5.01607793]
[1761185786770,2.92,181.94,181.92,5.01607793]
[1761185786969,2.92,181.94,181.93,5.01607793]
[1761185787375,6.86055591,181.99,181.93,5.01607793]
[1761185787376,2.92,181.98,181.93,5.01607793]
[1761185787570,2.92,181.98,181.94,5.01607793]
[1761185787877,2.92,181.98,181.95,5.01607793]
[1761185788072,2.92,181.98,181.96,5.01607793]
[1761185788271,2.92,181.98,181.97,5.01607793]
[1761185791980,2.85,181.97,181.88,3.04673418]
[1761185792275,2.85,181.96,181.85,21.14]
[1761185792469,2.85,181.96,181.85,24.18673418]
[1761185793882,2.85,181.96,181.85,3.04673418]
[1761185794482,2.85,181.95,181.85,3.04673418]
[1761185794779,2.85,181.94,181.85,3.04673418]
[1761185796184,2.85,181.93,181.85,3.04673418]
[1761185796386,2.85,181.93,181.84,45.32]
[1761185798385,2.85,181.93,181.86,3.04673418]
[1761185798685,2.85,181.96,181.89,3.04673418]
[1761185802477,2.85,181.96,181.87,3.04673418]
[1761185802676,2.85,181.96,181.84,3.04673418]
[1761185802677,2.85,181.95,181.84,3.04673418]
[1761185802883,2.85,181.94,181.84,3.04673418]
[1761185803088,5.13404347,181.94,181.84,3.04673418]
[1761185803293,2.85,181.93,181.84,3.04673418]
[1761185804986,2.85,181.92,181.84,3.04673418]
[1761185809497,2.85,181.92,181.81,50.2695]
[1761185809498,2.85,181.92,181.82,3.04673418]
[1761185810096,2.85,181.94,181.85,3.04673418]
[1761185812199,2.85,181.94,181.85,48.38673418]
[1761185813192,2.85,181.94,181.86,3.04673418]
[1761185813395,2.85,181.94,181.85,45.34]
[1761185813598,2.85,181.94,181.85,48.38673418]
[1761185814699,2.85,181.94,181.85,3.04673418]
[1761185815101,2.85,181.94,181.84,50.2887]
[1761185815298,2.85,181.94,181.85,3.04673418]
[1761185816002,6.85031241,181.93,181.85,3.04673418]
[1761185816302,6.85031241,181.92,181.85,3.04673418]
[1761185816501,4.00031241,181.91,181.85,3.04673418]
[1761185816803,4.00031241,181.9,181.85,3.04673418]
[1761185816998,2.85,181.92,181.85,3.04673418]
[1761185817204,4.00077294,181.91,181.85,3.04673418]
[1761185817407,4.00077294,181.9,181.85,3.04673418]
[1761185817602,2.85,181.92,181.85,3.04673418]
[1761185817805,4.00103898,181.91,181.85,3.04673418]
[1761185818004,4.00103898,181.9,181.85,3.04673418]
[1761185818204,2.85,181.92,181.85,3.04673418]
[1761185818498,4.00118515,181.91,181.85,48.38673418]
[1761185818703,4.00118515,181.9,181.85,48.38673418]
[1761185818907,2.85,181.92,181.85,48.38673418]
[1761185819102,4.00118515,181.91,181.85,48.38673418]
[1761185819309,4.00118515,181.9,181.85,48.38673418]
[1761185819504,2.85,181.92,181.85,48.38673418]
[1761185819703,4.00134214,181.91,181.85,3.04673418]
[1761185820002,2.85,181.92,181.86,45.34]
[1761185820206,4.00118078,181.91,181.85,3.04673418]
[1761185820403,4.00118078,181.9,181.86,45.34]
[1761185820600,2.85,181.92,181.86,45.34]
[1761185820801,4.001311,181.91,181.86,45.34]
[1761185821008,6.86055591,181.97,181.86,45.34]
[1761185821009,8.09404347,181.97,181.9,3.04673418]
[1761185821203,6.86055591,181.99,181.93,3.04673418]
[1761185821204,4.00115363,181.96,181.93,3.04673418]
[1761185821402,2.96,181.99,181.93,3.04673418]
[1761185821711,6.95924146,181.98,181.93,3.04673418]
[1761185821908,3.99924146,181.97,181.93,3.04673418]
[1761185822105,8.09404347,182.01,181.93,3.04673418]
[1761185822306,3.99015972,182.0,181.93,3.04673418]
[1761185822505,3.99015972,181.99,181.93,3.04673418]
[1761185822712,2.96,182.01,181.93,48.38673418]
[1761185822713,3.99015972,181.98,181.93,48.38673418]
[1761185822915,2.96,182.01,181.93,48.38673418]
[1761185823216,3.99011849,182.0,181.96,3.04673418]
[1761185823412,6.95011849,181.99,181.96,3.04673418]
[1761185823610,3.98898966,181.98,181.96,3.04673418]
[1761185823814,2.96,181.99,181.96,3.04673418]
[1761185824009,3.98898966,181.98,181.96,3.04673418]
[1761185824210,2.96,181.99,181.96,3.04673418]
[1761185824514,3.9880547,181.98,181.96,3.04673418]
[1761185824710,2.96,181.99,181.96,3.04673418]
[1761185824917,3.9880547,181.98,181.96,3.04673418]
[1761185825115,2.96,181.99,181.96,3.04673418]
[1761185825414,3.98713063,181.98,181.96,3.04673418]
[1761185825616,2.96,181.99,181.96,3.04673418]
[1761185825817,3.98711026,181.98,181.96,3.04673418]
[1761185826018,2.96,181.99,181.96,3.04673418]
[1761185826213,3.98711026,181.98,181.96,3.04673418]
[1761185826409,2.96,182.02,181.96,3.04673418]
[1761185826607,6.94625072,182.01,181.96,3.04673418]
[1761185826809,3.98625072,182.0,181.96,3.04673418]
[1761185827010,3.98625072,181.99,181.96,3.04673418]
[1761185827310,2.96,182.01,181.96,3.04673418]
[1761185827506,6.94526306,182.0,181.96,3.04673418]
[1761185827819,2.96,181.99,181.96,3.04673418]
[1761185829118,2.96,182.02,181.96,3.04673418]
[1761185829413,2.96,182.0,181.96,3.04673418]
[1761185832816,2.96,182.0,181.99,1.94753021]
[1761185836420,2.96,182.01,181.99,1.94753021]
[1761185836614,2.96,182.01,181.95,4.9456]
[1761185836615,2.96,182.01,182.0,1.94753021]
[1761185841328,2.96,182.06,182.0,1.94753021]
[1761185841527,2.96,182.04,182.0,1.94753021]
[1761185841722,2.96,182.02,182.0,1.94753021]
[1761185843131,2.96,182.02,181.97,1.94753021]
[1761185843349,2.96,182.0,181.97,1.94753021]
[1761185846723,2.96,182.0,181.95,45.32]
[1761185846924,2.96,182.0,181.97,1.94753021]
[1761185848626,2.96,182.0,181.95,45.32]
[1761185848932,2.96,182.0,181.97,1.94753021]
[1761185849821,2.84,182.05,181.99,1.94753021]
[1761185850025,2.84,182.03,182.01,1.94753021]
[1761185850320,2.84,182.02,182.0,1.94753021]
[1761185851529,6.80370757,182.06,182.0,1.94753021]
[1761185851729,6.80370757,182.05,182.04,1.94753021]
[1761185851925,6.80370757,182.05,182.02,1.94753021]
[1761185851926,2.84,182.05,182.02,1.94753021]
[1761185853233,2.84,182.05,182.04,1.94753021]
[1761185854627,3.96498266,182.06,182.04,1.94753021]
[1761185854828,6.80628995,182.07,182.04,1.94753021]
[1761185855029,6.80628995,182.06,182.04,1.94753021]
[1761185855231,2.84,182.06,182.04,1.94753021]
[1761185855936,6.80628995,182.06,182.04,1.94753021]
[1761185856134,2.84,182.06,182.04,1.94753021]
[1761185858130,6.80672233,182.05,181.98,45.32]
[1761185858328,6.80672233,182.05,181.96,4.9454]
[1761185858329,2.84,182.04,182.03,1.94753021]
[1761185859240,2.84,182.04,182.01,1.94753021]
[1761185859441,2.84,182.03,182.01,1.94753021]
[1761185860841,2.84,182.03,181.94,4.946]
[1761185861033,6.81044757,182.02,182.01,1.94753021]
[1761185861228,6.81044757,182.02,181.98,1.94753021]
[1761185861427,2.84,182.02,181.98,1.94753021]
[1761185861633,2.84,182.04,182.0,1.94753021]
[1761185863340,3.97539872,182.03,182.0,1.94753021]
[1761185863639,2.84,182.04,182.0,1.94753021]
[1761185863837,3.97539841,182.03,182.0,1.94753021]
[1761185864038,2.84,182.04,182.0,1.94753021]
[1761185864238,3.97539841,182.03,182.0,1.94753021]
[1761185864540,2.84,182.04,182.0,1.94753021]
[1761185864740,3.97802428,182.03,182.0,1.94753021]
[1761185864937,2.84,182.04,182.02,1.94753021]
[1761185865137,3.97797688,182.03,182.02,1.94753021]
[1761185866440,2.84,182.04,182.02,1.94753021]
[1761185868130,2.84,182.07,182.02,1.94753021]
[1761185868331,3.97779029,182.06,182.04,1.94753021]
[1761185868531,2.84,182.07,182.04,1.94753021]
[1761185869434,2.84,182.12,182.06,1.94753021]
[1761185869741,6.81595148,182.11,182.09,1.94753021]
[1761185869945,3.97595148,182.1,182.09,1.94753021]
[1761185870243,2.84,182.13,182.09,1.94753021]
[1761185870837,2.84,182.13,182.05,45.34]
[1761185871133,2.84,182.13,182.03,16.51]
[1761185871336,2.84,182.13,182.07,1.94753021]
[1761185871542,2.84,182.13,182.04,47.28753021]
[1761185871740,2.84,182.12,182.04,47.28753021]
[1761185871948,2.84,182.12,182.06,1.94753021]
[1761185875652,2.84,182.12,182.09,1.94753021]
[1761185875856,2.84,182.12,182.07,1.94753021]
[1761185876149,2.84,182.1,182.07,1.94753021]
[1761185878755,2.84,182.1,182.09,1.94753021]
[1761185879155,2.92,182.09,182.07,1.94753021]
[1761185881059,2.92,182.09,182.03,45.4]
[1761185881251,2.92,182.07,182.03,47.34753021]
[1761185881451,2.92,182.07,181.98,21.4549]
[1761185881651,2.92,182.07,181.99,1.94753021]
[1761185883460,2.92,182.05,181.99,1.94753021]
[1761185886158,2.92,182.05,182.01,1.94753021]
[1761185887163,2.92,182.05,182.0,1.94753021]
[1761185887660,3.97037644,182.04,181.97,45.4]
[1761185887865,2.92,182.02,181.96,1.94753021]
[1761185888064,6.89037644,182.01,181.96,1.94753021]
[1761185888369,7.07564188,182.05,181.96,1.94753021]
[1761185888370,2.92,182.0,181.96,1.94753021]
[1761185889264,2.92,182.0,181.97,1.94753021]
[1761185891163,2.92,182.0,181.99,1.94753021]
[1761185894769,2.92,182.0,181.97,3.04293161]
[1761185901072,2.92,182.05,181.97,3.04293161]
[1761185901372,6.89119527,182.04,181.97,3.04293161]
[1761185901574,2.92,182.04,181.97,3.04293161]
[1761185901769,2.92,182.04,182.0,3.04293161]
[1761185904775,5.12811167,182.08,182.0,3.04293161]
[1761185904776,2.83,182.02,182.0,3.04293161]
[1761185905478,2.83,182.05,182.0,3.04293161]
[1761185905670,2.83,182.03,182.0,3.04293161]
[1761185909579,2.83,182.03,181.97,48.42293161]